lending/lending_fUSD_20260222
["ID","MTS","AMOUNT","RATE_DAILY","PERIOD"]
[406338185,1771765844047,-200.0,0.00027648,2]
[406338187,1771765844056,-250.0,0.00027648,2]
[406338189,1771765844064,-500.0,0.00027648,2]
[406338191,1771765844075,-500.0,0.00027648,2]
[406338193,1771765844084,-250.0,0.00027648,2]
[406338195,1771765844096,-200.0,0.00027648,2]
[406338197,1771765844106,-500.0,0.00027648,2]
[406338199,1771765844114,-199.66892992,0.00027648,2]
[406338201,1771765844123,-250.0,0.00027648,2]
[406338203,1771765844132,-500.0,0.00027648,2]
[406338205,1771765844142,-500.0,0.00027648,2]
[406338207,1771765844151,-250.0,0.00027648,2]
[406338209,1771765844160,-500.0,0.00027648,2]
[406338211,1771765844169,-500.0,0.00027648,2]
[406338213,1771765844179,-500.0,0.00027648,2]
[406338215,1771765844188,-250.0,0.00027648,2]
[406338217,1771765844197,-500.0,0.00027648,2]
[406338218,1771765844205,-500.0,0.00027648,2]
[406338221,1771765844215,-500.0,0.00027648,2]
[406338222,1771765844224,-250.0,0.00027648,2]
[406338225,1771765844234,-500.0,0.00027648,2]
[406338226,1771765844243,-500.0,0.00027648,2]
[406338229,1771765844253,-500.0,0.00027648,2]
[406338231,1771765844262,-250.0,0.00027648,2]
[406338232,1771765844272,-500.0,0.00027648,2]
[406338234,1771765844281,-500.0,0.00027648,2]
[406338236,1771765844291,-500.0,0.00027648,2]
[406338239,1771765844300,-250.0,0.00027648,2]
[406338241,1771765844310,-624.38742817,0.00027648,2]
[406338242,1771765844321,-500.0,0.00027648,2]
[406338244,1771765844331,-500.0,0.00027648,2]
[406338246,1771765844341,-257.87287478,0.00027648,2]
[406338249,1771765844352,-500.0,0.00027648,2]
[406338250,1771765844362,-500.0,0.00027648,2]
[406338252,1771765844371,-500.0,0.00027648,2]
[406338254,1771765844380,-500.0,0.00027648,2]
[406338256,1771765844389,-203.84209265,0.00027648,2]
[406338258,1771765844398,-500.0,0.00027648,2]
[406338260,1771765844407,-500.0,0.00027648,2]
[406338262,1771765844416,-500.0,0.00027648,2]
[406338264,1771765844426,-500.0,0.00027648,2]
[406338266,1771765844435,-500.0,0.00027648,2]
[406338268,1771765844444,-250.0,0.00027648,2]
[406338270,1771765844453,-250.0,0.00027648,2]
[406338272,1771765844463,-250.0,0.00027648,2]
[406338274,1771765844472,-300.0,0.00027648,2]
[406338276,1771765844481,-250.0,0.00027648,2]
[406338278,1771765844491,-300.0,0.00027648,2]
[406338280,1771765844500,-250.0,0.00027648,2]
[406338282,1771765844510,-300.0,0.00027648,2]
[406338284,1771765844521,-199.12107742,0.00027648,2]
[406338286,1771765844530,-300.0,0.00027648,2]
[406338288,1771765844540,-165.87554275,0.00027648,2]
[406338290,1771765844549,-300.0,0.00027648,2]
[406338292,1771765844559,-300.0,0.00027648,2]
[406338294,1771765844569,-500.0,0.00027648,2]
[406338296,1771765844579,-300.0,0.00027648,2]
[406338298,1771765844588,-500.0,0.00027648,2]
[406338300,1771765844598,-300.0,0.00027648,2]
[406338302,1771765844607,-500.0,0.00027648,2]
[406338305,1771765844618,-300.0,0.00027648,2]
[406338306,1771765844628,-693.3919763,0.00027648,2]
[406338308,1771765844638,-500.0,0.00027648,2]
[406338310,1771765844649,-300.0,0.00027648,2]
[406338312,1771765844660,-500.0,0.00027648,2]
[406338314,1771765844669,-300.0,0.00027648,2]
[406338316,1771765844678,-500.0,0.00027648,2]
[406338318,1771765844687,-500.0,0.00027648,2]
[406338320,1771765844696,-151.0,0.00027648,2]
[406338323,1771765844706,-500.0,0.00027648,2]
[406338325,1771765844715,-500.0,0.00027648,2]
[406338327,1771765844724,-500.0,0.00027648,2]
[406338329,1771765844733,-500.0,0.00027648,2]
[406338330,1771765844742,-719.04747942,0.00027703,2]
[406338332,1771765844751,-233.11431957,0.00027703,2]
[406338335,1771765844760,-175.96,0.00027743,2]
[406338336,1771765844770,-745.65223616,0.00027758,2]
[406338338,1771765844779,-773.2413689,0.00027813,2]
[406338341,1771765844789,-801.85129955,0.00027868,2]
[406338342,1771765844798,-831.51979763,0.00027923,2]
[406338344,1771765844807,-862.28603014,0.00027978,2]
[406338347,1771765844816,-165.07743367,0.00027993,2]
[406338348,1771765844825,-51015.27399493,0.00028,2]
[406338350,1771765844835,-160.0,0.00028,2]
[406338352,1771765844844,-151.0,0.00028,5]
[406338354,1771765844853,-894.19061326,0.00028033,2]
[406338356,1771765844863,-927.27566595,0.00028088,2]
[406338358,1771765844872,-961.58486559,0.00028143,2]
[406338360,1771765844881,-997.16350561,0.00028198,2]
[406338362,1771765844890,-500.0,0.00028409,120]
[406338364,1771765844899,-306.7551253,0.00028476,2]
[406338366,1771765844908,-150.0,0.00028544,2]
[406338368,1771765844918,-618.0,0.00028767,2]
[406338370,1771765844927,-495.77856808,0.00028767,2]
[406338372,1771765844936,-227.96,0.00028819,2]
[406338374,1771765844944,-503.9138085,0.00029,2]
[406338376,1771765844953,-2000.0,0.00029,2]
[406338378,1771765844962,-703.0,0.000291,2]
[406338380,1771765844971,-150.0,0.000291,2]
[406338382,1771765844981,-253.0,0.000291,2]
[406338384,1771765844991,-79180.15058256,0.000299,2]
[406338386,1771765845000,-150.0,0.00029971,2]
[406338388,1771765845009,-238.1263055,0.0002999,2]
[406338390,1771765845019,-10000.0,0.0003,30]
[406338392,1771765845028,-1000.0,0.0003,30]
[406338394,1771765845037,-19943.51451283,0.0003,2]
[406338396,1771765845046,-320.52096258,0.0003,2]
[406338398,1771765845056,-1824.63515708,0.0003,2]
[406338400,1771765845065,-163.65754243,0.0003,2]
[406338402,1771765845075,-173.78509278,0.0003,30]
[406338404,1771765845084,-153.79366241,0.0003,5]
[406338406,1771765845095,-1304.418782,0.00030017,30]
[406338408,1771765845105,-435.954755,0.00030017,30]
[406338410,1771765845114,-500.0,0.00030021,120]
[406338412,1771765845123,-1077.86299281,0.0003013,2]
[406338414,1771765845133,-13905.66835593,0.0003013,2]
[406338416,1771765845142,-636.53572096,0.0003013,2]
[406338418,1771765845151,-202.49787502,0.0003013,2]
[406338420,1771765845160,-7761.6147683,0.0003013,2]
[406338422,1771765845172,-507.65,0.00030137,2]
[406338424,1771765845181,-151.0,0.00030137,7]
[406338426,1771765845191,-2000.0,0.00030137,2]
[406338428,1771765845200,-15596.54748013,0.000302,2]
[406338430,1771765845209,-161.63,0.00030352,30]
[406338432,1771765845218,-2000.0,0.00030685,2]
[406338434,1771765845227,-662.07267379,0.00030705,2]
[406338436,1771765845236,-200.0,0.00030796,25]
[406338438,1771765845245,-1615.13247028,0.0003084,2]
[406338440,1771765845254,-2000.0,0.000309,2]
[406338442,1771765845263,-79323.33825602,0.0003095,2]
[406338444,1771765845272,-45408.03238219,0.00031,2]
[406338447,1771765845293,-432.33575633,0.00031,2]
[406338449,1771765845303,-5922.26284119,0.00031,2]
[406338451,1771765845313,-611.31843411,0.00031029,2]
[406338453,1771765845323,-2000.0,0.00031233,2]
[406338455,1771765845332,-198.11340609,0.000315,2]
[406338457,1771765845341,-500.0,0.00031633,120]
[406338459,1771765845349,-297.211,0.00031767,2]
[406338461,1771765845358,-2000.0,0.00031781,2]
[406338463,1771765845371,-20037.15594043,0.000323,2]
[406338466,1771765845383,-2000.0,0.000323,7]
[406338468,1771765845397,-2023.95858652,0.00032329,2]
[406338470,1771765845409,-150.0,0.00032498,7]
[406338472,1771765845421,-2000.0,0.000327,2]
[406338475,1771765845431,-1726.91534345,0.0003287,4]
[406338477,1771765845440,-507.65,0.00032877,2]
[406338479,1771765845451,-500.0,0.00032877,2]
[406338481,1771765845463,-500.0,0.00032877,2]
[406338483,1771765845475,-500.0,0.00032877,2]
[406338486,1771765845486,-500.0,0.00032877,2]
[406338488,1771765845498,-500.0,0.00032877,2]
[406338490,1771765845510,-500.0,0.00032877,2]
[406338492,1771765845522,-372.93950921,0.00032877,2]
[406338494,1771765845534,-6864.64,0.000329,14]
[406338497,1771765845547,-500.0,0.00032973,5]
[406338499,1771765845558,-15740.16183392,0.00033,2]
[406338502,1771765845573,-1400.8317482,0.00033,2]
[406338509,1771765845632,-196.46574185,0.00016193,2]
[406338511,1771765845643,-552.87914705,0.00016799,2]
[406338513,1771765845654,-422.854,0.00022394,2]
[406338516,1771765845665,-173.78509278,0.00024911,2]
[406338518,1771765845678,-413.0,0.00025394,2]
[406338520,1771765845689,-413.0,0.00028394,2]
[406338522,1771765845700,-413.0,0.00031394,2]
[406338524,1771765845712,-2404.43194902,0.00033,2]
[406338537,1771765845824,-845.26736747,0.00016292,2]
[406338540,1771765845837,-984.38472066,0.00016292,2]
[406338578,1771765846251,-299.68777687,0.00016292,2]
[406338579,1771765846265,-1020.18,0.00016292,2]
[406338580,1771765846277,-4783.88220807,0.00016292,2]
[406338602,1771765982237,1244.71,0.00012837,2]
[406338603,1771766014417,250.0,0.00015,2]
[406338604,1771766315823,4172.14852497,0.00014992,2]
[406338675,1771766591617,187.39,0.00011709,2]
[406338679,1771766815123,-373.09873936,0.00014442,2]
[406338683,1771766961078,-1282.60480869,0.00014126,2]
[406338690,1771767031433,-355.00000001,0.00014126,2]
[406338693,1771767031491,-3192.0451913,0.00014126,2]
[406338694,1771767031501,-600.0,0.00014126,2]
[406338695,1771767031511,-190.77686963,0.00014166,2]
[406338696,1771767031523,-309.22313037,0.00014166,2]
[406338697,1771767031533,-600.0,0.00014205,2]
[406338698,1771767031542,-500.0,0.0001426,2]
[406338699,1771767031552,-195.0,0.00014284,2]
[406338700,1771767031561,-1200.0,0.00014341,2]
[406338701,1771767031576,-600.0,0.00014342,2]
[406338702,1771767031586,-600.0,0.00014342,2]
[406338703,1771767031595,-600.0,0.00014342,2]
[406338704,1771767031606,-195.0,0.00014399,2]
[406338705,1771767031618,-450.0,0.00014399,14]
[406338706,1771767031633,-643.57686963,0.00014442,2]
[406338707,1771767031647,-6080.87439101,0.00014442,2]
[406338708,1771767031657,-198.66323241,0.00014459,2]
[406338709,1771767031668,-1852.42,0.00014488,2]
[406338710,1771767031679,-250.0,0.00014536,2]
[406338711,1771767031690,-300.0,0.00014583,2]
[406338712,1771767031700,-300.0,0.00014583,2]
[406338713,1771767031710,-300.0,0.00014583,2]
[406338714,1771767031720,-27072.48,0.00014584,2]
[406338715,1771767031730,-200.0,0.00014708,2]
[406338716,1771767031739,-863.0,0.0001481,2]
[406338717,1771767031749,-182.0,0.00014839,2]
[406338718,1771767031759,-150.0,0.00014841,2]
[406338719,1771767031769,-500.0,0.00014842,2]
[406338720,1771767031779,-9999.99,0.00014842,2]
[406338721,1771767031788,-9999.99,0.00014842,2]
[406338722,1771767031798,-1401.18,0.00014842,2]
[406338723,1771767031808,-150.99,0.00014842,2]
[406338724,1771767031818,-988.0,0.00014866,2]
[406338725,1771767031828,-151.0,0.00014983,2]
[406338726,1771767031837,-151.0,0.00014983,2]
[406338727,1771767031848,-151.0,0.00014983,2]
[406338728,1771767031858,-151.0,0.00014983,2]
[406338729,1771767031868,-151.0,0.00014983,2]
[406338730,1771767031877,-6914.85147503,0.00014992,2]
[406338731,1771767031886,-648.71026409,0.00015012,2]
[406338732,1771767031896,-383.0,0.0001507,2]
[406338733,1771767031905,-1918.0,0.00015095,2]
[406338734,1771767031915,-150.99,0.00015099,2]
[406338735,1771767031924,-9999.99,0.00015099,2]
[406338736,1771767031934,-999.99,0.00015099,2]
[406338737,1771767031944,-8706.83717832,0.00015099,2]
[406338738,1771767032109,-1293.15282168,0.00015099,2]
[406338739,1771767032119,-299.99,0.00015099,2]
[406338740,1771767032129,-588.0,0.00015125,2]
[406338741,1771767032138,-1224.45,0.00015207,2]
[406338742,1771767032151,-1352.0,0.00015229,2]
[406338743,1771767032161,-166.66,0.00015252,2]
[406338744,1771767032170,-75.74717832,0.00015289,2]
[406338746,1771767037475,-11563.09723138,0.00014742,2]
[406338748,1771767037534,-321.08,0.00014742,2]
[406338749,1771767037792,-6187.95,0.00014742,2]
[406338757,1771767037921,-93684.28416862,0.00014742,2]
[406338759,1771767037931,-1424.25282168,0.00015289,2]
[406338762,1771767037940,-251.0,0.00015461,2]
[406338765,1771767037949,-308.0,0.00015461,2]
[406338768,1771767037959,-500.0,0.00015482,2]
[406338770,1771767037968,-500.0,0.00015482,2]
[406338772,1771767037977,-150.0,0.00015492,2]
[406338774,1771767037985,-150.0,0.00015492,2]
[406338776,1771767037994,-150.0,0.00015492,2]
[406338778,1771767038003,-500.0,0.00015492,2]
[406338780,1771767038012,-500.0,0.00015492,2]
[406338781,1771767038022,-150.0,0.00015492,2]
[406338782,1771767038032,-202.72864747,0.00015492,2]
[406338783,1771767038041,-500.0,0.00015492,2]
[406338784,1771767038050,-500.0,0.000155,5]
[406338785,1771767038061,-250.0,0.00015512,2]
[406338786,1771767038070,-500.0,0.00015537,2]
[406338787,1771767038079,-500.0,0.00015537,2]
[406338788,1771767038089,-195.0,0.00015539,2]
[406338789,1771767038098,-600.0,0.00015539,2]
[406338790,1771767038107,-500.0,0.00015539,2]
[406338791,1771767038116,-150.0,0.00015547,2]
[406338792,1771767038126,-200.0,0.00015547,2]
[406338793,1771767038136,-500.0,0.00015547,2]
[406338794,1771767038145,-500.0,0.00015547,2]
[406338795,1771767038154,-442.30331764,0.00015565,2]
[406338796,1771767038163,-500.0,0.00015592,2]
[406338797,1771767038173,-502.65175273,0.00015592,2]
[406338798,1771767038183,-1000.0,0.000156,5]
[406338799,1771767038192,-296.46563881,0.00015602,2]
[406338800,1771767038201,-500.0,0.00015602,2]
[406338801,1771767038211,-500.0,0.00015602,2]
[406338802,1771767038220,-442.30331764,0.00015624,2]
[406338803,1771767038230,-500.0,0.00015646,2]
[406338804,1771767038240,-162.55382438,0.00015656,2]
[406338805,1771767038249,-500.0,0.00015656,2]
[406338806,1771767038259,-917.41116898,0.00015665,2]
[406338807,1771767038269,-917.41116898,0.00015665,2]
[406338808,1771767038278,-917.41116898,0.00015665,2]
[406338809,1771767038288,-917.41116898,0.00015665,2]
[406338810,1771767038298,-917.41116898,0.00015665,2]
[406338811,1771767038308,-917.41116898,0.00015665,2]
[406338812,1771767038318,-917.41116898,0.00015665,2]
[406338813,1771767038327,-917.41116898,0.00015665,2]
[406338814,1771767038337,-917.41116898,0.00015665,2]
[406338815,1771767038346,-917.41116898,0.00015665,2]
[406338816,1771767038355,-917.41116898,0.00015665,2]
[406338817,1771767038365,-917.41116898,0.00015665,2]
[406338818,1771767038374,-917.41116898,0.00015665,2]
[406338819,1771767038384,-917.41116898,0.00015665,2]
[406338820,1771767038394,-917.41116898,0.00015665,2]
[406338821,1771767038403,-917.41116898,0.00015665,2]
[406338822,1771767038413,-917.41116898,0.00015665,2]
[406338823,1771767038422,-917.41116898,0.00015665,2]
[406338824,1771767038431,-917.41116898,0.00015665,2]
[406338825,1771767038441,-917.41116898,0.00015665,2]
[406338826,1771767038450,-917.41116898,0.00015665,2]
[406338827,1771767038459,-917.41116898,0.00015665,2]
[406338828,1771767038468,-898.52329197,0.00015665,2]
[406338829,1771767038477,-898.52329197,0.00015665,2]
[406338830,1771767038486,-898.52329197,0.00015665,2]
[406338831,1771767038495,-898.52329197,0.00015665,2]
[406338832,1771767038504,-898.52329197,0.00015665,2]
[406338833,1771767038513,-898.52329197,0.00015665,2]
[406338834,1771767038522,-898.52329197,0.00015665,2]
[406338835,1771767038532,-898.52329197,0.00015665,2]
[406338836,1771767038541,-898.52329197,0.00015665,2]
[406338837,1771767038550,-898.52329197,0.00015665,2]
[406338838,1771767038559,-898.52329197,0.00015665,2]
[406338839,1771767038568,-898.52329197,0.00015665,2]
[406338840,1771767038581,-898.52329197,0.00015665,2]
[406338841,1771767038590,-898.52329197,0.00015665,2]
[406338842,1771767038599,-898.52329197,0.00015665,2]
[406338843,1771767038609,-898.52329197,0.00015665,2]
[406338844,1771767038618,-898.52329197,0.00015665,2]
[406338845,1771767038627,-898.52329197,0.00015665,2]
[406338846,1771767038636,-898.52329197,0.00015665,2]
[406338847,1771767038645,-898.52329197,0.00015665,2]
[406338848,1771767038654,-898.52329197,0.00015665,2]
[406338849,1771767038665,-898.52329197,0.00015665,2]
[406338850,1771767038674,-898.52329197,0.00015665,2]
[406338851,1771767038683,-898.52329197,0.00015665,2]
[406338852,1771767038693,-898.52329197,0.00015665,2]
[406338853,1771767038702,-898.52329197,0.00015665,2]
[406338854,1771767038712,-898.52329197,0.00015665,2]
[406338855,1771767038721,-898.52329197,0.00015665,2]
[406338856,1771767038730,-898.52329197,0.00015665,2]
[406338857,1771767038740,-898.52329197,0.00015665,2]
[406338858,1771767038749,-898.52329197,0.00015665,2]
[406338859,1771767038759,-898.52329197,0.00015665,2]
[406338860,1771767038769,-976.17345303,0.00015665,2]
[406338861,1771767038778,-976.17345303,0.00015665,2]
[406338862,1771767038788,-976.17345303,0.00015665,2]
[406338863,1771767038797,-2034.0067,0.00015666,2]
[406338864,1771767038807,-32701.4321,0.00015666,2]
[406338865,1771767038816,-442.30331764,0.00015682,2]
[406338866,1771767038825,-1500.0,0.000157,5]
[406338867,1771767038834,-500.0,0.00015701,2]
[406338868,1771767038844,-500.0,0.00015711,2]
[406338869,1771767038853,-442.30331764,0.00015741,2]
[406338870,1771767038863,-166.66,0.00015756,2]
[406338871,1771767038873,-500.0,0.00015756,2]
[406338872,1771767038882,-164.43552299,0.00015756,2]
[406338873,1771767038892,-500.0,0.00015766,2]
[406338874,1771767038901,-500.0,0.00015766,2]
[406338875,1771767038910,-500.0,0.00015766,2]
[406338876,1771767038919,-500.0,0.00015766,2]
[406338877,1771767038928,-500.0,0.00015766,2]
[406338878,1771767038937,-500.0,0.00015766,2]
[406338879,1771767038947,-500.0,0.00015766,2]
[406338880,1771767038956,-500.0,0.00015766,2]
[406338881,1771767038966,-500.0,0.00015766,2]
[406338882,1771767038976,-500.0,0.00015766,2]
[406338883,1771767038985,-500.0,0.00015766,2]
[406338884,1771767038994,-500.0,0.00015766,2]
[406338885,1771767039005,-500.0,0.00015766,2]
[406338886,1771767039013,-500.0,0.00015766,2]
[406338887,1771767039022,-500.0,0.00015766,2]
[406338888,1771767039032,-500.0,0.00015766,2]
[406338889,1771767039041,-500.0,0.00015766,2]
[406338890,1771767039050,-500.0,0.00015766,2]
[406338891,1771767039059,-500.0,0.00015766,2]
[406338892,1771767039068,-500.0,0.00015766,2]
[406338893,1771767039077,-500.0,0.00015766,2]
[406338894,1771767039086,-500.0,0.00015766,2]
[406338895,1771767039095,-500.0,0.00015766,2]
[406338896,1771767039104,-500.0,0.00015766,2]
[406338897,1771767039113,-500.0,0.00015766,2]
[406338898,1771767039123,-500.0,0.00015766,2]
[406338899,1771767039132,-500.0,0.00015766,2]
[406338900,1771767039142,-500.0,0.00015766,2]
[406338901,1771767039151,-500.0,0.00015766,2]
[406338902,1771767039160,-500.0,0.00015766,2]
[406338903,1771767039169,-500.0,0.00015766,2]
[406338904,1771767039178,-500.0,0.00015766,2]
[406338905,1771767039187,-500.0,0.00015766,2]
[406338906,1771767039196,-500.0,0.00015766,2]
[406338907,1771767039205,-500.0,0.00015766,2]
[406338908,1771767039215,-500.0,0.00015766,2]
[406338909,1771767039223,-500.0,0.00015766,2]
[406338910,1771767039233,-500.0,0.00015766,2]
[406338911,1771767039242,-500.0,0.00015766,2]
[406338912,1771767039251,-500.0,0.00015766,2]
[406338913,1771767039260,-500.0,0.00015766,2]
[406338914,1771767039269,-500.0,0.00015766,2]
[406338915,1771767039279,-500.0,0.00015766,2]
[406338916,1771767039288,-500.0,0.00015766,2]
[406338917,1771767039297,-500.0,0.00015766,2]
[406338918,1771767039306,-500.0,0.00015766,2]
[406338919,1771767039315,-500.0,0.00015766,2]
[406338920,1771767039325,-500.0,0.00015766,2]
[406338921,1771767039335,-500.0,0.00015766,2]
[406338922,1771767039345,-500.0,0.00015766,2]
[406338923,1771767039355,-482.78681073,0.00015766,2]
[406338924,1771767039364,-617.04551055,0.00015773,2]
[406338925,1771767039374,-500.0,0.00015773,2]
[406338926,1771767039384,-500.0,0.00015773,2]
[406338927,1771767039393,-1048.8902579,0.00015773,2]
[406338928,1771767039403,-588.05563072,0.00015773,2]
[406338929,1771767039412,-1050.3484668,0.00015773,2]
[406338930,1771767039422,-196.46574186,0.00015773,2]
[406338931,1771767039431,-1680.0,0.00015775,2]
[406338932,1771767039440,-289.67867352,0.00015777,2]
[406338933,1771767039449,-442.30331764,0.00015799,2]
[406338934,1771767039459,-2000.0,0.000158,5]
[406338935,1771767039468,-1048.89025789,0.00015808,2]
[406338936,1771767039477,-500.0,0.00015818,2]
[406338937,1771767039486,-150.0,0.00015818,2]
[406338938,1771767039495,-150.0,0.00015818,2]
[406338939,1771767039504,-150.0,0.00015818,2]
[406338940,1771767039513,-150.0,0.00015818,2]
[406338941,1771767039522,-150.0,0.00015818,2]
[406338942,1771767039531,-458.70315985,0.00015821,2]
[406338943,1771767039541,-284.0,0.00015836,2]
[406338944,1771767039551,-1048.89025789,0.00015844,2]
[406338945,1771767039560,-35917.73448214,0.00015849,2]
[406338946,1771767039571,-661.89,0.00015856,3]
[406338947,1771767039583,-500.0,0.00015865,2]
[406338948,1771767039594,-174.31824575,0.00015865,2]
[406338949,1771767039604,-500.0,0.00015865,2]
[406338950,1771767039616,-228.94118582,0.00015865,2]
[406338952,1771767039626,-427.07789858,0.00015865,2]
[406338953,1771767039636,-3500000.0,0.00015866,2]
[406338954,1771767039649,-587.38563793,0.00015873,2]
[406338955,1771767039658,-250.90005908,0.00015873,2]
[406338956,1771767039668,-150.0,0.00015873,2]
[406338957,1771767039677,-150.0,0.00015873,2]
[406338958,1771767039687,-150.0,0.00015873,2]
[406338959,1771767039698,-150.0,0.00015873,2]
[406338960,1771767039707,-1048.89025789,0.00015879,2]
[406338961,1771767039718,-250.0,0.00015887,2]
[406338962,1771767039728,-195.0,0.00015887,2]
[406338963,1771767039739,-150.0,0.0001589,2]
[406338964,1771767039748,-2500.0,0.000159,5]
[406338965,1771767039757,-1048.89025789,0.00015915,2]
[406338966,1771767039767,-500.0,0.00015915,2]
[406338967,1771767039779,-150.0,0.00015915,2]
[406338968,1771767039788,-150.0,0.00015928,2]
[406338969,1771767039798,-150.0,0.00015928,2]
[406338970,1771767039808,-150.0,0.00015928,2]
[406338971,1771767039820,-150.0,0.00015928,2]
[406338972,1771767039830,-500.0,0.00015937,2]
[406338973,1771767039840,-250.0,0.00015937,2]
[406338974,1771767039851,-1048.89025789,0.0001595,2]
[406338975,1771767039860,-219.0,0.00015969,2]
[406338976,1771767039870,-500.0,0.0001597,2]
[406338977,1771767039881,-150.0,0.0001597,2]
[406338978,1771767039890,-150.0,0.00015982,2]
[406338979,1771767039900,-150.0,0.00015982,2]
[406338980,1771767039909,-150.0,0.00015982,2]
[406338981,1771767039919,-150.0,0.00015982,2]
[406338982,1771767039928,-1048.89025789,0.00015986,2]
[406338983,1771767039938,-1048.89025789,0.00016021,2]
[406338984,1771767039947,-500.0,0.00016025,2]
[406338985,1771767039957,-150.0,0.00016025,2]
[406338986,1771767039967,-150.0,0.00016037,2]
[406338987,1771767039976,-150.0,0.00016037,2]
[406338988,1771767039986,-150.0,0.00016037,2]
[406338989,1771767039995,-150.0,0.00016037,2]
[406338990,1771767040005,-500.0,0.0001604,2]
[406338991,1771767040014,-300.0,0.00016041,2]
[406338992,1771767040027,-1048.89025789,0.00016057,2]
[406338993,1771767040037,-162.52171303,0.00016073,2]
[406338994,1771767040047,-516.45912901,0.00016073,2]
[406338995,1771767040056,-333.94416864,0.00016073,2]
[406338996,1771767040066,-224.55054318,0.00016079,2]
[406338997,1771767040075,-250.0,0.00016092,2]
[406338998,1771767040084,-250.0,0.00016092,2]
[406338999,1771767040094,-250.0,0.00016092,2]
[406339000,1771767040103,-250.0,0.00016092,2]
[406339001,1771767040112,-597.09690735,0.00016092,2]
[406339002,1771767040121,-1048.89025789,0.00016092,2]
[406339003,1771767040130,-164.43552296,0.00016113,2]
[406339004,1771767040139,-904.0,0.00016162,2]
[406339005,1771767040148,-500.0,0.0001619,2]
[406339006,1771767040157,-500.0,0.0001619,2]
[406339007,1771767040166,-500.0,0.0001619,2]
[406339008,1771767040175,-269.30860549,0.0001619,2]
[406339009,1771767040184,-500.0,0.0001619,2]
[406339010,1771767040192,-500.0,0.0001619,2]
[406339011,1771767040202,-500.0,0.0001619,2]
[406339012,1771767040212,-500.0,0.0001619,2]
[406339013,1771767040221,-500.0,0.0001619,2]
[406339014,1771767040230,-3101.656,0.00016192,2]
[406339015,1771767040240,-263.6441,0.00016192,2]
[406339016,1771767040250,-5000.00909193,0.000162,5]
[406339017,1771767040259,-166.66,0.00016259,2]
[406339018,1771767040268,-500.0,0.00016291,2]
[406339019,1771767040279,-500.0,0.00016291,2]
[406339020,1771767040289,-500.0,0.00016291,2]
[406339021,1771767040298,-500.0,0.00016291,2]
[406339022,1771767040307,-500.0,0.00016291,2]
[406339023,1771767040316,-211.14640207,0.00016291,2]
[406339024,1771767040324,-504.62313566,0.00016321,2]
[406339025,1771767040334,-1000.0,0.00016321,2]
[406339026,1771767040343,-264.39,0.00016428,2]
[406339027,1771767040352,-211.31,0.00016438,2]
[406339028,1771767040365,-161.62,0.00016438,30]
[406339029,1771767040374,-164.43552296,0.00016471,2]
[406339030,1771767040388,-1000.0,0.000166,2]
[406339031,1771767040399,-163.45,0.00016712,2]
[406339032,1771767040409,-166.66,0.00016763,2]
[406339033,1771767040419,-33134.73889359,0.000168,2]
[406339034,1771767040431,-164.43552296,0.00016828,2]
[406339035,1771767040442,-588.0556307,0.00016837,2]
[406339036,1771767040452,-1050.34846678,0.00016837,2]
[406339037,1771767040461,-1500.0,0.00016868,2]
[406339038,1771767040470,-31935.97643602,0.00017,2]